bitfinex-derivatives/quotes_BTCF0:USTF0_20251219
["timestamp","ask_amount","ask_price","bid_price","bid_amount"]
[1766140284593,0.0113686,88010.0,87979.0,0.00572]
[1766140284594,0.0113689,88008.0,87979.0,0.00572]
[1766140284986,0.0113692,88005.0,87984.0,0.0113718]
[1766140285187,0.29090039,88000.0,87979.0,0.00572]
[1766140285391,0.00017045,87998.0,87980.0,4.5e-07]
[1766140285592,0.00017045,87998.0,87976.0,0.0113728]
[1766140285798,0.29090039,87990.0,87976.0,0.0113728]
[1766140286498,0.00572,87991.0,87974.0,0.00011405]
[1766140286697,0.29090039,87990.0,87974.0,0.00011405]
[1766140286891,0.0113712,87990.0,87974.0,0.00011405]
[1766140287099,0.30227159,87990.0,87974.0,0.00011405]
[1766140289001,0.00572,87991.0,87974.0,0.00011405]
[1766140289400,0.00572,87991.0,87977.0,0.0113727]
[1766140289997,0.00572,87991.0,87974.0,0.01148725]
[1766140292794,0.0113715,87988.0,87974.0,0.00011405]
[1766140292991,0.29090039,87990.0,87974.0,0.00011405]
[1766140293193,0.00572,87991.0,87974.0,0.00011405]
[1766140293393,0.29090039,87990.0,87974.0,0.00011405]
[1766140294005,0.29090039,87990.0,87974.0,0.01148715]
[1766140294705,0.29090039,87990.0,87975.0,0.0113731]
[1766140295206,0.00572,87989.0,87981.0,0.0113722]
[1766140295898,0.00017045,87998.0,87978.0,0.00572]
[1766140296099,4.5e-07,87998.0,87991.0,0.0113709]
[1766140296298,4.5e-07,87998.0,87988.0,0.0113713]
[1766140296499,4.5e-07,87998.0,87990.0,0.0113711]
[1766140296802,4.5e-07,87998.0,87996.0,0.0113703]
[1766140297403,4.5e-07,87998.0,87974.0,0.00011405]
[1766140297610,4.5e-07,87998.0,87991.0,0.0113709]
[1766140297910,4.5e-07,87998.0,87993.0,0.0113707]
[1766140298307,4.5e-07,87998.0,87990.0,0.0113711]
[1766140298511,4.5e-07,87998.0,87989.0,0.0170912]
[1766140299011,4.5e-07,87998.0,87995.0,0.0113704]
[1766140300409,4.5e-07,87998.0,87989.0,0.00572]
[1766140300606,4.5e-07,87998.0,87992.0,0.0113708]
[1766140300909,4.5e-07,87998.0,87994.0,0.0113705]
[1766140301209,4.5e-07,87998.0,87982.0,2.38844]
[1766140301408,4.5e-07,87998.0,87987.0,0.0113714]
[1766140302807,4.5e-07,87998.0,87988.0,0.00572]
[1766140303308,4.5e-07,87998.0,87987.0,1.4e-06]
[1766140303505,4.5e-07,87998.0,87974.0,0.00011405]
[1766140303710,0.0113718,87985.0,87974.0,0.00011405]
[1766140304209,0.0113722,87982.0,87974.0,0.00011405]
[1766140308515,0.0113724,87981.0,87963.0,0.0113745]
[1766140308715,0.0113724,87981.0,87965.0,0.0113743]
[1766140309013,0.017092,87984.0,87962.0,0.00192]
[1766140309313,0.017092,87984.0,87966.0,0.0113742]
[1766140309613,0.01726245,87984.0,87966.0,0.0115442]
[1766140311114,0.00017045,87984.0,87968.0,0.0113739]
[1766140312317,0.00017045,87984.0,87972.0,0.0113734]
[1766140312616,0.0113689,88008.0,87981.0,0.0113722]
[1766140312811,0.0113703,87997.0,87978.0,0.0113726]
[1766140313020,0.0113703,87997.0,87973.0,0.00572]
[1766140313021,0.011371,87992.0,87973.0,0.0170933]
[1766140313228,0.0113712,87990.0,87973.0,0.0170933]
[1766140313525,0.0113708,87993.0,87973.0,0.0170933]
[1766140313727,0.00017045,87992.0,87974.0,0.00017045]
[1766140314026,0.0113713,87989.0,87974.0,0.00017045]
[1766140314226,0.00572,87988.0,87974.0,0.00017045]
[1766140314426,0.00572,87988.0,87974.0,0.01154355]
[1766140317231,0.00572,87988.0,87976.0,0.0113729]
[1766140321137,0.00017045,87992.0,87982.0,0.0113721]
[1766140322327,0.01137,87999.0,87984.0,0.0113718]
[1766140322529,0.0170904,87996.0,87981.0,0.0113722]
[1766140323835,0.00572,87996.0,87983.0,0.011372]
[1766140324035,0.00227228,88018.0,87980.0,0.29099744]
[1766140324338,0.0113695,88003.0,87985.0,0.0113717]
[1766140324537,0.0170895,88003.0,87987.0,0.0113714]
[1766140325038,0.0113698,88001.0,87985.0,0.00572]
[1766140325240,0.0113699,88000.0,87985.0,0.00572]
[1766140325630,0.29099744,88000.0,87985.0,0.00572]
[1766140325938,0.29099744,88000.0,87970.0,0.0113737]
[1766140325939,0.29099744,87995.0,87976.0,0.00452]
[1766140326126,0.29099744,87990.0,87976.0,0.00452]
[1766140326329,0.29099744,87990.0,87970.0,2.38864]
[1766140326529,0.0113722,87982.0,87969.0,0.00572]
[1766140326730,0.29099744,87980.0,87962.0,0.0113747]
[1766140327029,0.29116789,87980.0,87963.0,0.00572]
[1766140327428,0.29116789,87980.0,87964.0,0.0113744]
[1766140327635,0.00017045,87980.0,87964.0,0.0113744]
[1766140327835,0.00017045,87980.0,87967.0,0.0113741]
[1766140329237,0.00017045,87980.0,87969.0,0.0113738]
[1766140329431,0.29116789,87980.0,87969.0,0.0113738]
[1766140329827,0.00017045,87980.0,87969.0,0.0113738]
[1766140330240,0.00017045,87980.0,87971.0,0.0113735]
[1766140330546,0.00572,87984.0,87973.0,0.0113732]
[1766140330728,0.00572,87986.0,87975.0,0.011373]
[1766140331633,0.00572,87986.0,87972.0,0.00017045]
[1766140331840,0.00017045,87989.0,87972.0,0.00017045]
[1766140332232,0.00168,87995.0,87980.0,0.0113724]
[1766140332434,0.00168,87995.0,87982.0,0.011372]
[1766140333043,0.00168,87995.0,87979.0,0.0113725]
[1766140333238,0.00168,87995.0,87981.0,0.0113722]
[1766140334841,0.00168,87995.0,87983.0,0.011372]
[1766140337544,0.29096019,87993.0,87983.0,0.011372]
[1766140341642,0.29096019,87993.0,87985.0,0.0113717]
[1766140341840,0.29264019,87995.0,87985.0,0.0113717]
[1766140342335,0.00017045,87996.0,87987.0,0.0113714]
[1766140342535,0.00572,87995.0,87987.0,0.0113714]
[1766140342749,0.0113681,88014.0,87972.0,0.00017045]
[1766140342750,0.29096019,88010.0,87982.0,0.00572]
[1766140342936,0.00572,88009.0,87993.0,0.0113706]
[1766140343443,0.00572,88009.0,87984.0,0.0113719]
[1766140343647,0.00572,88008.0,87995.0,0.0113704]
[1766140344546,0.00572,88007.0,87995.0,0.0113704]
[1766140345141,0.00572,88007.0,87993.0,0.00017045]
[1766140345346,0.29096019,88003.0,87993.0,0.00017045]
[1766140349050,0.00572,88007.0,87993.0,0.01154115]
[1766140349256,0.29096019,88003.0,87993.0,0.01154115]
[1766140349852,0.00572,88007.0,87993.0,0.01154115]
[1766140350050,0.0113688,88008.0,87993.0,0.01154115]
[1766140350247,0.00572,88007.0,87993.0,0.01154115]
[1766140351553,0.00572,88007.0,87983.0,0.00572]
[1766140351554,0.0113692,88006.0,87983.0,0.00572]
[1766140351854,0.29096019,88000.0,87991.0,0.011371]
[1766140352252,0.29096019,88000.0,87988.0,0.0113713]
[1766140354557,0.29096019,88000.0,87985.0,0.01154225]
[1766140354754,0.29096019,87995.0,87985.0,4.5e-07]
[1766140354951,0.29107428,88010.0,87995.0,0.0113704]
[1766140355148,0.00572,88009.0,87995.0,0.0113704]
[1766140355349,0.00572,88009.0,87997.0,0.0113702]
[1766140356955,0.00572,88009.0,87994.0,0.0113705]
[1766140357161,0.00572,88009.0,87996.0,0.0113703]
[1766140357360,0.00572,88008.0,87996.0,0.0113703]
[1766140358051,0.0170888,88008.0,87993.0,0.0113706]
[1766140358356,0.0113691,88006.0,87990.0,0.011371]
[1766140358550,0.0113625,88057.0,88001.0,0.0568486]
[1766140358744,0.00216,88062.0,88047.0,0.0113638]
[1766140358947,0.00216,88062.0,88040.0,0.29096019]
[1766140359146,0.00216,88062.0,88050.0,0.0113633]
[1766140359362,0.00572,88057.0,88050.0,0.0113633]
[1766140359660,0.00572,88057.0,88045.0,0.00017035]
[1766140359855,0.00572,88057.0,88046.0,0.0113639]
[1766140360053,0.00572,88057.0,88045.0,0.00017035]
[1766140360358,0.00572,88057.0,88045.0,0.01153425]
[1766140362358,0.00572,88057.0,88044.0,0.011364]
[1766140362561,0.00572,88057.0,88026.0,0.0113664]
[1766140362759,0.00572,88057.0,88025.0,0.00572]
[1766140362962,0.00572,88057.0,88039.0,0.0113647]
[1766140363256,0.0170825,88057.0,88039.0,0.01153505]
[1766140363661,0.00572,88057.0,88041.0,0.0113644]
[1766140364161,0.0170825,88057.0,88039.0,0.00017035]
[1766140364463,0.0170825,88057.0,88025.0,0.0113665]
[1766140364464,0.29046795,88050.0,88025.0,0.0113665]
[1766140364665,0.00572,88049.0,88025.0,0.0113665]
[1766140364855,0.0113641,88045.0,88025.0,0.0113665]
[1766140365257,0.00017035,88044.0,88028.0,0.0113662]
[1766140365554,0.00572,88043.0,88028.0,0.0113662]
[1766140366663,0.00572,88043.0,88031.0,0.0113658]
[1766140367265,0.00572,88043.0,88028.0,0.0113662]
[1766140368263,0.00572,88043.0,88026.0,0.00017035]
[1766140368463,0.00572,88043.0,88026.0,3.5e-07]
[1766140369366,0.0113648,88040.0,88026.0,3.5e-07]
[1766140371466,0.0170843,88043.0,88026.0,3.5e-07]
[1766140371669,0.00572,88042.0,88026.0,3.5e-07]
[1766140371967,5e-08,88044.0,88030.0,0.29046795]
[1766140372665,5e-08,88044.0,88039.0,0.0113647]
[1766140373066,5e-08,88044.0,88030.0,0.29046795]
[1766140373369,5e-08,88045.0,88042.0,0.0113643]
[1766140374063,0.00192,88045.0,88042.0,0.0113643]
[1766140374669,0.00192,88045.0,88030.0,0.29046795]
[1766140374868,0.00192,88045.0,88037.0,0.011365]
[1766140375270,0.00292,88045.0,88037.0,0.011365]
[1766140375971,0.00292,88045.0,88030.0,0.29046795]
[1766140376172,0.00292,88045.0,88039.0,0.0113647]
[1766140378875,0.0034,88045.0,88039.0,0.0113647]
[1766140380171,0.003,88045.0,88039.0,0.0113647]
[1766140380368,0.00017035,88052.0,88042.0,0.0113644]
[1766140380572,0.00572,88051.0,88042.0,0.0113644]
[1766140381073,0.00227124,88058.0,88030.0,0.29046795]
[1766140381275,0.00072,88057.0,88048.0,0.0113636]
[1766140381966,0.00572,88056.0,88048.0,0.0113636]
[1766140382667,0.00572,88055.0,88044.0,0.00017035]
[1766140382862,0.00572,88055.0,88047.0,0.0113637]
[1766140383062,0.0113629,88054.0,88037.0,0.011365]
[1766140383267,0.29050283,88050.0,88037.0,0.011365]
[1766140383474,0.29050283,88050.0,88033.0,0.0113654]
[1766140383770,0.29050283,88050.0,88034.0,0.0113654]
[1766140384294,0.30186623,88050.0,88034.0,0.0113654]
[1766140385382,0.0113634,88050.0,88034.0,0.0113654]
[1766140385675,0.3019798,88050.0,88034.0,0.0113654]
[1766140385871,0.0113638,88047.0,88020.0,0.06228292]
[1766140386066,0.0170828,88055.0,88010.0,2.38708]
[1766140386067,0.3019811,88040.0,88017.0,0.00572]
[1766140386276,0.0113649,88038.0,88022.0,0.0113669]
[1766140387076,0.0113649,88038.0,88024.0,0.0113667]
[1766140387379,0.00589035,88039.0,88026.0,0.0113664]
[1766140390075,0.01725515,88039.0,88023.0,0.0113668]
[1766140390383,0.0113651,88037.0,88021.0,0.00017035]
[1766140390682,0.0113651,88037.0,88022.0,0.011367]
[1766140391676,0.0113651,88037.0,88021.0,0.00017035]
[1766140392080,0.00589035,88039.0,88021.0,0.00017035]
[1766140392268,0.0113654,88035.0,88021.0,0.00017035]
[1766140392781,0.00589035,88039.0,88021.0,3.5e-07]
[1766140393276,0.0113658,88032.0,88021.0,3.5e-07]
[1766140393474,0.00572,88031.0,88021.0,3.5e-07]
[1766140397488,0.0113653,88036.0,88021.0,3.5e-07]
[1766140397670,0.00572,88035.0,88021.0,3.5e-07]
[1766140397871,0.0113651,88037.0,88021.0,3.5e-07]
[1766140398071,0.00572,88036.0,88021.0,3.5e-07]
[1766140400283,0.0113651,88037.0,88021.0,3.5e-07]
[1766140400284,0.0113651,88037.0,88022.0,0.0113669]
[1766140400473,0.00568,88036.0,88022.0,0.0113669]
[1766140401282,0.00572,88035.0,88024.0,0.0113666]
[1766140401485,0.00572,88035.0,88021.0,3.5e-07]
[1766140401675,0.00572,88034.0,88021.0,3.5e-07]
[1766140401876,0.00017035,88039.0,88028.0,0.0113662]
[1766140402069,0.00572,88038.0,88023.0,0.0113668]
[1766140402272,0.00017035,88039.0,88023.0,0.0113668]
[1766140402484,0.00572,88037.0,88025.0,0.0113666]
[1766140404387,0.0113652,88036.0,88022.0,0.0113669]
[1766140409692,0.0113655,88034.0,88021.0,3.5e-07]
[1766140410292,0.0113655,88034.0,88021.0,0.01136745]
[1766140414903,0.0113655,88034.0,88021.0,3.5e-07]
[1766140416700,0.0113658,88032.0,88021.0,3.5e-07]
[1766140417898,0.0113654,88035.0,88021.0,3.5e-07]
[1766140419600,0.0113656,88033.0,88021.0,3.5e-07]
[1766140421104,0.0113653,88035.0,88021.0,3.5e-07]
[1766140421292,0.00572,88037.0,88021.0,3.5e-07]
[1766140421494,0.00572,88037.0,88010.0,0.06278101]
[1766140421690,0.0113656,88033.0,88020.0,0.0113672]
[1766140421891,0.00572,88032.0,88023.0,0.0113667]
[1766140422897,0.00572,88032.0,88019.0,0.00011451]
[1766140423305,0.00572,88032.0,88022.0,0.0113669]
[1766140423804,0.00572,88032.0,88019.0,0.00011451]
[1766140424913,0.00572,88032.0,88022.0,0.0113669]
[1766140425101,0.0113651,88037.0,88022.0,0.0113669]
[1766140425297,0.00572,88036.0,88024.0,0.0113666]
[1766140425499,0.00017035,88039.0,88024.0,0.0113666]
[1766140425699,0.00572,88038.0,88024.0,0.0113666]
[1766140427604,0.0170849,88038.0,88024.0,0.0113666]
[1766140427804,0.0170849,88038.0,88021.0,0.011367]
[1766140428910,0.0170849,88038.0,88023.0,0.0113667]
[1766140429413,0.0113649,88038.0,88023.0,0.0113667]
[1766140429608,0.00572,88037.0,88023.0,0.0113667]
[1766140429912,0.00572,88036.0,88023.0,0.0113667]
[1766140430209,0.0113649,88038.0,88023.0,0.0113667]
[1766140430410,0.00572,88037.0,88025.0,0.0113666]
[1766140430911,0.00572,88036.0,88027.0,0.0113663]
[1766140431207,0.00017035,88039.0,88027.0,0.0113663]
[1766140431408,0.00572,88038.0,88027.0,0.0113663]
[1766140431607,0.00572,88037.0,88027.0,0.0113663]
[1766140431807,0.00572,88036.0,88027.0,0.0113663]
[1766140433308,0.290703,88060.0,88037.0,0.011365]
[1766140433619,0.00572,88051.0,88036.0,0.0113651]
[1766140433797,0.0170833,88051.0,88036.0,0.0113651]
[1766140434111,0.290703,88050.0,88036.0,0.0113651]
[1766140436018,0.0113635,88049.0,88034.0,0.00017035]
[1766140436913,0.0113635,88049.0,88035.0,0.0113653]
[1766140437525,0.00572,88051.0,88037.0,0.011365]
[1766140437818,0.3077865,88050.0,88034.0,0.01153565]
[1766140438006,0.00572,88049.0,88034.0,0.01153565]
[1766140438520,0.00017035,88052.0,88034.0,0.00017035]
[1766140439010,0.0004,88051.0,88039.0,0.0113647]
[1766140440319,0.290703,88050.0,88034.0,0.00017035]
[1766140440719,0.011364,88046.0,88034.0,0.00017035]
[1766140440915,0.0113642,88044.0,88034.0,0.00017035]
[1766140441121,0.0113642,88044.0,88023.0,0.0113668]
[1766140441122,0.0113649,88039.0,88023.0,0.0113668]
[1766140441320,0.0113649,88039.0,88020.0,0.06931631]
[1766140441321,0.0170849,88039.0,88025.0,0.0113666]
[1766140442424,0.0113651,88037.0,88023.0,0.00011451]
[1766140443428,0.0113654,88035.0,88023.0,0.00011451]
[1766140446817,0.0113652,88036.0,88023.0,0.00011451]
[1766140447022,0.00572,88039.0,88023.0,4.51e-06]
[1766140447527,0.0113658,88032.0,88023.0,4.51e-06]
[1766140447728,0.00572,88031.0,88023.0,4.51e-06]
[1766140457140,0.0113673,88020.0,88003.0,0.0113694]
[1766140457332,0.0113675,88018.0,88003.0,0.0113694]
[1766140457530,0.00572,88019.0,88005.0,0.0113691]
[1766140457730,0.00572,88019.0,88009.0,0.0113686]
[1766140460237,0.00572,88019.0,88001.0,0.06269308]
[1766140461335,0.00572,88019.0,88010.0,0.0113685]
[1766140463241,0.00572,88019.0,88007.0,0.0113688]
[1766140464144,0.00572,88019.0,88000.0,0.29647674]
[1766140464340,0.00572,88019.0,88000.0,0.00572]
[1766140464533,0.00572,88019.0,88000.0,0.29647674]
[1766140465046,0.00572,88019.0,88000.0,0.00572]
[1766140465342,0.00011168,88018.0,88000.0,0.29647674]
[1766140466948,0.00011168,88018.0,88009.0,0.0113686]
[1766140467647,0.00572,88017.0,88009.0,0.0113686]
[1766140468236,0.00572,88017.0,88006.0,0.011369]
[1766140469043,0.00572,88017.0,88008.0,0.0113688]
[1766140470248,0.00572,88017.0,88009.0,0.0113686]
[1766140470431,0.00572,88017.0,88006.0,0.011369]
[1766140470632,0.00572,88017.0,88008.0,0.0113688]
[1766140470843,0.00011168,88018.0,88000.0,0.29647674]
[1766140471042,0.00572,88017.0,88014.0,0.011368]
[1766140471446,0.00572,88017.0,88011.0,0.0113683]
[1766140475450,0.00011168,88018.0,88011.0,0.0113683]
[1766140475748,0.00572,88017.0,88011.0,0.0113683]
[1766140477150,0.00572,88017.0,88008.0,0.0113687]
[1766140482262,0.00572,88017.0,88010.0,0.0113685]
[1766140485662,0.00572,88017.0,88008.0,0.0113688]
[1766140487462,0.00572,88017.0,88010.0,0.0113685]
[1766140488863,0.00572,88017.0,88007.0,0.0113689]
[1766140490572,0.00572,88017.0,88004.0,0.0113692]
[1766140490967,0.00572,88017.0,88000.0,0.00572]
[1766140490968,0.00572,88017.0,88001.0,0.0113696]
[1766140491167,0.00572,88017.0,88003.0,0.0113694]
[1766140492476,0.0113686,88010.0,88000.0,0.00572]
[1766140492667,0.00572,88009.0,87996.0,0.0113703]
[1766140492864,0.00572,88009.0,87992.0,2.38776]
[1766140493661,0.00572,88009.0,87998.0,0.0113701]
[1766140497679,0.00572,88009.0,87997.0,0.0113702]
[1766140498071,0.00572,88009.0,87994.0,0.0113705]
[1766140498680,0.00572,88009.0,87996.0,0.0113703]
[1766140499382,0.00572,88009.0,87990.0,0.00572]
[1766140499383,0.29075674,88006.0,87993.0,0.0113707]
[1766140499579,0.29075674,88003.0,87993.0,0.0113707]
[1766140500192,0.29075674,88003.0,87990.0,0.017091]
[1766140500481,0.29075674,88000.0,87992.0,0.0113708]
[1766140500673,0.29075674,88000.0,87990.0,0.00572]
[1766140500674,0.00572,88001.0,87991.0,0.011371]
[1766140500976,0.00448,88001.0,87991.0,0.011371]
[1766140501184,0.00388,88001.0,87993.0,0.0113707]
[1766140501372,0.00572,88001.0,87990.0,0.00572]
[1766140501570,0.00011168,88018.0,88007.0,0.0113689]
[1766140501775,0.00288,88017.0,88004.0,0.0113692]
[1766140505589,0.00572,88016.0,88002.0,0.00017045]
[1766140505884,0.00572,88016.0,88006.0,0.011369]
[1766140508590,0.00572,88016.0,88003.0,0.0113694]
[1766140508981,0.00572,88015.0,88003.0,0.0113694]
[1766140509785,0.00572,88014.0,88005.0,0.0113692]
[1766140510289,0.00572,88013.0,88002.0,0.00017045]
[1766140510487,0.29075674,88030.0,88014.0,0.011368]
[1766140510793,0.0113662,88028.0,88011.0,0.0113683]
[1766140511490,0.01153665,88028.0,88011.0,0.01153875]
[1766140512993,0.01153665,88028.0,88013.0,0.0113681]
[1766140513291,0.0113665,88026.0,88013.0,0.0113681]
[1766140515082,0.00017045,88028.0,88013.0,0.0113681]
[1766140516193,0.00017045,88028.0,88015.0,0.0113679]
[1766140516692,0.0113664,88027.0,88015.0,0.0113679]
[1766140516892,0.0113664,88027.0,88012.0,0.0113682]
[1766140517395,0.0113664,88027.0,88014.0,0.011368]
[1766140518293,0.0113664,88027.0,88011.0,0.00017045]
[1766140519288,0.00572,88026.0,88012.0,0.0113683]
[1766140519496,4.5e-07,88028.0,88024.0,0.0113667]
[1766140519795,0.00156,88030.0,88023.0,0.0113668]
[1766140520391,0.29075674,88040.0,88027.0,0.0113663]
[1766140520690,0.00572,88039.0,88027.0,0.0113663]
[1766140520896,0.00572,88039.0,88024.0,0.0113666]
[1766140521497,0.0113645,88041.0,88024.0,0.0113666]
[1766140521796,0.29647674,88040.0,88024.0,0.0113666]
[1766140521995,0.00017045,88042.0,88026.0,0.0113664]
[1766140522198,4.5e-07,88042.0,88030.0,0.29075674]
[1766140522699,0.00572,88045.0,88030.0,0.29075674]
[1766140522899,0.00572,88045.0,88033.0,0.0113655]
[1766140526212,0.00572,88045.0,88036.0,0.0113652]
[1766140527406,0.0048,88047.0,88036.0,0.0113652]
[1766140530205,0.00572,88047.0,88036.0,0.0113652]
[1766140531806,0.00572,88047.0,88038.0,0.0113648]
[1766140532006,0.00017045,88048.0,88040.0,0.0113646]
[1766140532007,0.00589045,88048.0,88040.0,0.0113646]
[1766140532309,0.00017045,88048.0,88040.0,0.0113646]
[1766140532607,0.00589045,88048.0,88040.0,0.0113646]
[1766140534111,0.00589045,88048.0,88037.0,0.011365]
[1766140534910,0.00017045,88048.0,88039.0,0.0113648]
[1766140535210,0.00589045,88048.0,88039.0,0.0113648]
[1766140536110,0.00589045,88048.0,88036.0,0.0113651]
[1766140536309,0.00589045,88048.0,88038.0,0.0113649]
[1766140549117,0.00589045,88048.0,88035.0,0.0113652]
[1766140549416,0.00589045,88048.0,88037.0,0.011365]
[1766140558222,0.00017045,88048.0,88037.0,0.011365]
[1766140558424,0.00572,88047.0,88037.0,0.011365]
[1766140560523,0.00572,88047.0,88031.0,0.0113657]
[1766140561223,0.00572,88047.0,88038.0,0.0113649]
[1766140563727,0.00572,88047.0,88035.0,0.0113652]
[1766140564228,0.00572,88047.0,88036.0,0.0113652]
[1766140565024,0.00572,88047.0,88030.0,0.00017045]
[1766140565227,0.00572,88047.0,88031.0,0.0113657]
[1766140566832,0.00017045,88048.0,88031.0,0.0113657]
[1766140567026,0.00152,88047.0,88031.0,0.0113657]
[1766140567324,0.00152,88047.0,88036.0,0.0113651]
[1766140570128,0.00017045,88048.0,88036.0,0.0113651]
[1766140570333,0.00589045,88048.0,88036.0,0.0113651]
[1766140576743,0.00589045,88048.0,88034.0,0.0113654]
[1766140577426,0.0113638,88047.0,88030.0,0.00017045]
[1766140577735,0.00589045,88048.0,88033.0,0.0113655]
[1766140579242,0.0113638,88047.0,88033.0,0.0113655]
[1766140579634,0.00589045,88048.0,88033.0,0.0113655]
[1766140579834,0.00589045,88048.0,88035.0,0.0113652]
[1766140581546,0.01725405,88048.0,88035.0,0.0113652]
[1766140582747,0.01725405,88048.0,88032.0,0.0113656]
[1766140583546,0.0113639,88046.0,88032.0,0.0113656]
[1766140584538,0.00589045,88048.0,88030.0,0.00017045]
[1766140585038,0.01725425,88048.0,88031.0,0.0113657]
[1766140586149,0.0113639,88046.0,88031.0,0.0113657]
[1766140588943,0.29060787,88041.0,88030.0,0.00017045]
[1766140589141,0.0113648,88039.0,88030.0,0.00017045]
[1766140589342,0.0113651,88037.0,88030.0,0.00017045]
[1766140594553,0.00017045,88048.0,88038.0,0.0113649]
[1766140594861,0.00017045,88048.0,88040.0,0.0113646]
[1766140595055,0.00572,88047.0,88040.0,0.0113646]
[1766140595255,0.00572,88046.0,88040.0,0.0113646]
[1766140595455,0.00572,88045.0,88040.0,0.0113646]
[1766140596356,0.00017045,88048.0,88040.0,0.0113646]
[1766140596557,0.00572,88047.0,88040.0,0.0113646]
[1766140597353,0.00572,88047.0,88037.0,0.011365]
[1766140597762,0.00572,88047.0,88034.0,0.0113653]
[1766140598065,0.00572,88047.0,88030.0,0.00017045]
[1766140598253,0.30197267,88040.0,88030.0,0.00017045]
[1766140598450,0.29632787,88040.0,88030.0,0.00017045]
[1766140599163,0.29632787,88040.0,88030.0,0.01153635]
[1766140600063,0.29632787,88040.0,88032.0,0.0113657]
[1766140600264,0.29060787,88040.0,88032.0,0.0113657]
[1766140600563,0.00572,88039.0,88032.0,0.0113657]
[1766140602265,0.29060787,88040.0,88032.0,0.0113657]
[1766140602467,0.00572,88039.0,88032.0,0.0113657]
[1766140606071,0.00572,88039.0,88030.0,0.00017045]
[1766140606571,0.29060787,88042.0,88030.0,0.00017045]
[1766140606769,0.00572,88041.0,88030.0,0.00017045]
[1766140608174,0.00572,88041.0,88031.0,0.0113658]
[1766140609374,0.29060787,88042.0,88031.0,0.0113658]
[1766140609560,0.00572,88040.0,88031.0,0.0113658]
[1766140610171,0.00572,88040.0,88030.0,0.00017045]
[1766140611275,0.00572,88040.0,88030.0,0.01153645]
[1766140615482,0.00572,88040.0,88030.0,0.00017045]
[1766140616181,0.00572,88040.0,88030.0,4.5e-07]
[1766140617382,0.00572,88039.0,88030.0,4.5e-07]
[1766140619283,0.00572,88039.0,88030.0,0.01136625]
[1766140622284,0.00572,88039.0,88031.0,0.0113657]
[1766140622486,0.00572,88039.0,88030.0,4.5e-07]
[1766140622680,0.29060787,88050.0,88030.0,4.5e-07]
[1766140622876,0.00572,88049.0,88037.0,0.011365]
[1766140624484,0.00572,88049.0,88034.0,0.0113654]
[1766140625892,0.0113637,88048.0,88034.0,0.0113654]
[1766140626189,0.0113639,88046.0,88031.0,0.0113657]
[1766140626490,0.29060787,88041.0,88030.0,4.5e-07]
[1766140626689,0.29632787,88041.0,88030.0,4.5e-07]
[1766140628181,0.00572,88041.0,88030.0,4.5e-07]
[1766140629398,0.011365,88038.0,88030.0,4.5e-07]
[1766140629693,0.0170851,88037.0,88030.0,4.5e-07]
[1766140631789,0.00572,88037.0,88030.0,4.5e-07]
[1766140633692,0.0170851,88037.0,88030.0,4.5e-07]
[1766140633992,0.00572,88037.0,88030.0,4.5e-07]
[1766140637594,0.0113652,88036.0,88030.0,4.5e-07]
[1766140637779,0.0113652,88036.0,88024.0,0.00572]
[1766140637780,0.0113655,88034.0,88020.0,0.00572]
[1766140637983,0.29060787,88030.0,88020.0,0.00572]
[1766140638197,0.29060787,88030.0,88021.0,0.0113671]
[1766140638390,0.00572,88033.0,88021.0,0.0113671]
[1766140638590,0.00572,88033.0,88020.0,0.00572]
[1766140638790,0.29060787,88030.0,88020.0,0.00572]
[1766140638990,0.00572,88029.0,88020.0,0.00572]
[1766140646401,0.00572,88029.0,88018.0,0.00017045]
[1766140646601,0.00572,88029.0,88019.0,0.0113674]
[1766140647906,0.00572,88029.0,88018.0,0.00017045]
[1766140648400,0.00572,88029.0,88018.0,0.01153785]
[1766140649101,0.0170861,88029.0,88018.0,0.00017045]
[1766140649404,0.00572,88029.0,88018.0,0.00017045]
[1766140649601,0.0113669,88023.0,88018.0,4.5e-07]
[1766140650507,0.00572,88022.0,88018.0,4.5e-07]
[1766140652391,0.0113671,88021.0,88018.0,4.5e-07]
[1766140653408,0.00572,88022.0,88018.0,4.5e-07]
[1766140653608,0.017087,88022.0,88018.0,4.5e-07]
[1766140653908,0.0113683,88012.0,87982.0,0.0113721]
[1766140654095,0.00572,88011.0,87994.0,0.0113706]
[1766140654298,0.00572,88011.0,87995.0,0.00572]
[1766140654493,0.00572,88011.0,87996.0,0.0113703]
[1766140655110,0.00572,88011.0,87995.0,0.01726085]
[1766140655411,0.0113686,88010.0,87995.0,0.00589045]
[1766140655704,0.00572,88011.0,87995.0,0.00589045]
[1766140655905,0.00572,88011.0,87998.0,0.01137]
[1766140656110,0.00572,88010.0,88000.0,0.29071596]
[1766140656409,0.00376,88019.0,88000.0,0.29071596]
[1766140656711,0.0113661,88029.0,88010.0,0.0113685]
[1766140656902,0.00244,88028.0,88010.0,0.0113685]
[1766140657405,0.00261045,88028.0,88010.0,0.01153895]
[1766140657706,0.00017045,88028.0,88017.0,0.0113675]
[1766140658010,4.5e-07,88028.0,88017.0,0.0113675]
[1766140658508,0.00228,88031.0,88019.0,0.0113673]
[1766140659206,0.00228,88031.0,88016.0,0.0113677]
[1766140659607,0.00228,88031.0,88013.0,0.0170481]
[1766140660003,0.00228,88031.0,88015.0,0.0113678]
[1766140660204,0.0136459,88031.0,88015.0,0.0113678]
[1766140661211,0.0113659,88031.0,88015.0,0.0113678]
[1766140661415,0.00572,88030.0,88015.0,0.0113678]
[1766140661713,0.00572,88030.0,88017.0,0.0113676]
[1766140663814,0.01153625,88032.0,88017.0,0.0113676]
[1766140664112,0.00572,88029.0,88017.0,0.0113676]
[1766140664413,0.00572,88029.0,88014.0,0.011368]
[1766140664808,0.00017045,88032.0,88013.0,0.00568]
[1766140665111,0.0567317,88183.0,88013.0,0.00568]
[1766140665112,0.0113602,88075.0,88027.0,0.0113662]
[1766140665411,0.00072,88059.0,88047.0,0.0113637]
[1766140665604,0.0113616,88065.0,88049.0,0.0113634]
[1766140665911,0.003,88057.0,88046.0,0.0113638]
[1766140666216,0.003,88057.0,88045.0,0.00017035]
[1766140668915,0.0113623,88059.0,88045.0,0.00017035]
[1766140668916,0.0170823,88059.0,88045.0,0.00017035]
[1766140669320,0.00572,88059.0,88045.0,0.00017035]
[1766140669712,0.00572,88059.0,88047.0,0.0113637]
[1766140670019,1.24e-06,88058.0,88052.0,0.011363]
[1766140670611,1.24e-06,88058.0,88045.0,0.00017035]
[1766140671222,1.24e-06,88058.0,88046.0,0.0113639]
[1766140671414,1.24e-06,88058.0,88048.0,0.0113635]
[1766140671923,1.24e-06,88058.0,88045.0,0.01153435]
[1766140672218,1.24e-06,88058.0,88047.0,0.0113637]
[1766140672408,1.24e-06,88058.0,88045.0,0.00017035]
[1766140673421,1.24e-06,88058.0,88046.0,0.0113639]